[Event "*** Titled Tuesday Blitz"]
[Site "Chess.com"]
[Date "2021.03.02"]
[Round "2"]
[White "wonderfultime"]
[Black "ValeriyGrinev"]
[Result "1-0"]
[WhiteElo "2918"]
[BlackElo "2561"]
[TimeControl "180+1"]
[EndTime "10:15:51 PST"]
[Termination "wonderfultime won by resignation"]

1. d4 {[%clk 0:03:00.9]} 1... Nf6 {[%clk 0:02:59.3]} 2. Nf3 {[%clk 0:03:01]}
2... g6 {[%clk 0:02:59.5]} 3. Bg5 {[%clk 0:03:01.2]} 3... Bg7 {[%clk 0:02:59.5]}
4. Nbd2 {[%clk 0:03:01.7]} 4... c5 {[%clk 0:02:59.6]} 5. c3 {[%clk 0:03:02.2]}
5... b6 {[%clk 0:02:57.8]} 6. e3 {[%clk 0:03:01.4]} 6... Bb7 {[%clk 0:02:56.9]}
7. Bd3 {[%clk 0:03:01.7]} 7... O-O {[%clk 0:02:56.5]} 8. O-O {[%clk 0:03:01.4]}
8... d6 {[%clk 0:02:55.9]} 9. Qe2 {[%clk 0:03:01.5]} 9... a6 {[%clk 0:02:55.1]}
10. e4 {[%clk 0:03:01.3]} 10... h6 {[%clk 0:02:50.2]} 11. Bh4 {[%clk 0:03:01.6]}
11... cxd4 {[%clk 0:02:49]} 12. cxd4 {[%clk 0:03:02.5]} 12... Nh5 {[%clk
0:02:49.3]} 13. Qe3 {[%clk 0:02:48.7]} 13... g5 {[%clk 0:02:18.4]} 14. Bg3
{[%clk 0:02:26.5]} 14... Nc6 {[%clk 0:02:17.4]} 15. Nb3 {[%clk 0:02:18.9]} 15...
a5 {[%clk 0:01:51.7]} 16. a4 {[%clk 0:02:13.8]} 16... Nb4 {[%clk 0:01:51.8]} 17.
Rfc1 {[%clk 0:02:05.9]} 17... Nxd3 {[%clk 0:01:42.5]} 18. Qxd3 {[%clk
0:02:06.8]} 18... Qd7 {[%clk 0:01:42.9]} 19. Nfd2 {[%clk 0:01:57.9]} 19... Rac8
{[%clk 0:01:27.3]} 20. Rc3 {[%clk 0:01:40.3]} 20... f5 {[%clk 0:01:10.5]} 21.
exf5 {[%clk 0:01:31.4]} 21... Qxf5 {[%clk 0:01:11.4]} 22. Qxf5 {[%clk
0:01:26.2]} 22... Rxf5 {[%clk 0:01:12.3]} 23. Nc4 {[%clk 0:01:26.9]} 23... Nxg3
{[%clk 0:01:08.1]} 24. hxg3 {[%clk 0:01:27]} 24... Bd5 {[%clk 0:01:08.6]} 25.
Ne3 {[%clk 0:01:25.6]} 25... Rxc3 {[%clk 0:01:01.1]} 26. bxc3 {[%clk 0:01:26.5]}
26... Bxb3 {[%clk 0:00:58.5]} 27. Nxf5 {[%clk 0:01:26.2]} 27... Bf8 {[%clk
0:00:54.2]} 28. Ne3 {[%clk 0:01:24.1]} 28... e5 {[%clk 0:00:53]} 29. d5 {[%clk
0:01:21.4]} 29... h5 {[%clk 0:00:46.9]} 30. Ra3 {[%clk 0:01:21.5]} 1-0

[Event "*** Titled Tuesday Blitz"]
[Site "Chess.com"]
[Date "2021.03.02"]
[Round "2"]
[White "PlotnikovPavel"]
[Black "Kaslask"]
[Result "1-0"]
[WhiteElo "2479"]
[BlackElo "2283"]
[TimeControl "180+1"]
[EndTime "10:15:52 PST"]
[Termination "PlotnikovPavel won by resignation"]

1. e4 {[%clk 0:03:00.9]} 1... c5 {[%clk 0:02:59.1]} 2. c3 {[%clk 0:03:00.7]}
2... e6 {[%clk 0:02:56.3]} 3. d4 {[%clk 0:02:58.7]} 3... d5 {[%clk 0:02:56.1]}
4. e5 {[%clk 0:02:56.1]} 4... Nc6 {[%clk 0:02:55.6]} 5. Nf3 {[%clk 0:02:55.5]}
5... Bd7 {[%clk 0:02:55.2]} 6. a3 {[%clk 0:02:54.1]} 6... Rc8 {[%clk 0:02:53.1]}
7. b4 {[%clk 0:02:51.3]} 7... cxd4 {[%clk 0:02:51.2]} 8. cxd4 {[%clk 0:02:50.2]}
8... b5 {[%clk 0:02:51.7]} 9. Bd2 {[%clk 0:02:46.3]} 9... Qb6 {[%clk 0:02:42.4]}
10. Bc3 {[%clk 0:02:46.1]} 10... a5 {[%clk 0:02:40.9]} 11. bxa5 {[%clk
0:02:45.2]} 11... Nxa5 {[%clk 0:02:40.8]} 12. Be2 {[%clk 0:02:41.2]} 12... Ne7
{[%clk 0:02:35.1]} 13. O-O {[%clk 0:02:36.5]} 13... Nec6 {[%clk 0:02:32]} 14. h4
{[%clk 0:02:27.1]} 14... Be7 {[%clk 0:02:29.9]} 15. h5 {[%clk 0:02:27.3]} 15...
h6 {[%clk 0:02:29.4]} 16. Bd3 {[%clk 0:02:21.4]} 16... Nc4 {[%clk 0:02:23.9]}
17. Nbd2 {[%clk 0:02:16.5]} 17... N6a5 {[%clk 0:02:22.7]} 18. Nb3 {[%clk
0:02:15.2]} 18... Ra8 {[%clk 0:01:39.6]} 19. Nxa5 {[%clk 0:02:03.3]} 19... Nxa5
{[%clk 0:01:37.6]} 20. Bb4 {[%clk 0:02:00.8]} 20... Nc4 {[%clk 0:01:34.9]} 21.
Bxe7 {[%clk 0:01:59.9]} 21... Kxe7 {[%clk 0:01:34.3]} 22. Qb3 {[%clk 0:01:59.9]}
22... Qa5 {[%clk 0:01:31.9]} 23. Rfb1 {[%clk 0:01:55.2]} 23... Rhc8 {[%clk
0:01:30.5]} 24. g4 {[%clk 0:01:50.2]} 24... Rab8 {[%clk 0:01:27.3]} 25. Kg2
{[%clk 0:01:45.3]} 25... Nd2 {[%clk 0:01:25.6]} 26. Nxd2 {[%clk 0:01:44.8]}
26... Qxd2 {[%clk 0:01:25.5]} 27. Qb4+ {[%clk 0:01:44.8]} 27... Qxb4 {[%clk
0:01:24.7]} 28. axb4 {[%clk 0:01:45.7]} 28... Rc3 {[%clk 0:01:23]} 29. Be2
{[%clk 0:01:43.8]} 29... Rc2 {[%clk 0:01:21.9]} 30. Kf1 {[%clk 0:01:43.8]} 30...
Rd2 {[%clk 0:01:19]} 31. Ra7 {[%clk 0:01:42.2]} 31... Rxd4 {[%clk 0:01:15.8]}
32. Rc1 {[%clk 0:01:42.3]} 32... Rxb4 {[%clk 0:01:15.2]} 33. Rcc7 {[%clk
0:01:41.9]} 33... Rd8 {[%clk 0:01:15.1]} 34. Rcb7 {[%clk 0:01:36.8]} 34... d4
{[%clk 0:01:13.9]} 35. Bxb5 {[%clk 0:01:36.1]} 35... d3 {[%clk 0:01:02]} 36.
Rxd7+ {[%clk 0:01:34.5]} 36... Rxd7 {[%clk 0:00:58.1]} 37. Rxd7+ {[%clk
0:01:35.4]} 37... Ke8 {[%clk 0:00:54.3]} 38. Rb7+ {[%clk 0:01:32.5]} 38... Kf8
{[%clk 0:00:54.1]} 39. Rb8+ {[%clk 0:01:31.4]} 1-0

[Event "*** Titled Tuesday Blitz"]
[Site "Chess.com"]
[Date "2021.03.02"]
[Round "2"]
[White "Kislov_Oleg"]
[Black "Rud_Makarian"]
[Result "0-1"]
[WhiteElo "2514"]
[BlackElo "2780"]
[TimeControl "180+1"]
[EndTime "10:16:00 PST"]
[Termination "Rud_Makarian won by resignation"]

1. e4 {[%clk 0:03:00.9]} 1... Nc6 {[%clk 0:02:49.1]} 2. Nf3 {[%clk 0:02:58.5]}
2... d6 {[%clk 0:02:46.3]} 3. d4 {[%clk 0:02:58.2]} 3... Bg4 {[%clk 0:02:45.6]}
4. d5 {[%clk 0:02:57.5]} 4... Bxf3 {[%clk 0:02:43.6]} 5. Qxf3 {[%clk 0:02:54]}
5... Ne5 {[%clk 0:02:43.1]} 6. Qb3 {[%clk 0:02:40]} 6... Rb8 {[%clk 0:02:41.2]}
7. f4 {[%clk 0:02:24.4]} 7... Nd7 {[%clk 0:02:41]} 8. Be3 {[%clk 0:02:19.6]}
8... c5 {[%clk 0:02:36.4]} 9. Nc3 {[%clk 0:01:51.4]} 9... a6 {[%clk 0:02:34.9]}
10. a4 {[%clk 0:01:44.3]} 10... g6 {[%clk 0:02:27.5]} 11. e5 {[%clk 0:01:38.9]}
11... Bg7 {[%clk 0:02:25.8]} 12. e6 {[%clk 0:01:34.4]} 12... Ndf6 {[%clk
0:02:25.5]} 13. Bd3 {[%clk 0:01:14.3]} 13... Nh6 {[%clk 0:02:24.2]} 14. O-O
{[%clk 0:01:04.9]} 14... O-O {[%clk 0:02:23.7]} 15. f5 {[%clk 0:00:57.1]} 15...
Nfg4 {[%clk 0:02:22.6]} 16. Bxh6 {[%clk 0:00:52]} 16... Bxh6 {[%clk 0:02:19.3]}
17. Qc4 {[%clk 0:00:32.2]} 17... Ne5 {[%clk 0:02:10.7]} 18. Qe4 {[%clk
0:00:31.2]} 18... c4 {[%clk 0:02:02.1]} 19. Be2 {[%clk 0:00:20.5]} 19... Qb6+
{[%clk 0:02:02]} 20. Kh1 {[%clk 0:00:20.7]} 20... Qxb2 {[%clk 0:02:00.2]} 21.
Qd4 {[%clk 0:00:17.7]} 21... Qb4 {[%clk 0:01:42.3]} 22. exf7+ {[%clk 0:00:16.6]}
22... Rxf7 {[%clk 0:01:42.3]} 23. fxg6 {[%clk 0:00:16.5]} 23... Rxf1+ {[%clk
0:01:41.7]} 24. Rxf1 {[%clk 0:00:16.1]} 24... hxg6 {[%clk 0:01:42.6]} 25. Qh4
{[%clk 0:00:12.9]} 25... Rf8 {[%clk 0:01:39.8]} 26. Qh5 {[%clk 0:00:09.2]} 26...
Rxf1+ {[%clk 0:01:39.4]} 27. Bxf1 {[%clk 0:00:08.7]} 27... gxh5 {[%clk
0:01:40.3]} 0-1

[Event "*** Titled Tuesday Blitz"]
[Site "Chess.com"]
[Date "2021.03.02"]
[Round "2"]
[White "PowerThinking2650"]
[Black "DonPreuss"]
[Result "0-1"]
[WhiteElo "2458"]
[BlackElo "2287"]
[TimeControl "180+1"]
[EndTime "10:16:03 PST"]
[Termination "DonPreuss won on time"]

1. e4 {[%clk 0:02:56.1]} 1... Nc6 {[%clk 0:02:57.6]} 2. d4 {[%clk 0:02:43.5]}
2... e5 {[%clk 0:02:56.3]} 3. Nf3 {[%clk 0:02:26.4]} 3... exd4 {[%clk
0:02:53.9]} 4. Nxd4 {[%clk 0:02:23.1]} 4... Bc5 {[%clk 0:02:53.2]} 5. Nxc6
{[%clk 0:02:17.8]} 5... bxc6 {[%clk 0:02:45.4]} 6. Bd3 {[%clk 0:02:15.8]} 6...
d6 {[%clk 0:02:44.9]} 7. O-O {[%clk 0:02:15]} 7... Ne7 {[%clk 0:02:44.4]} 8. Nc3
{[%clk 0:02:10.7]} 8... a5 {[%clk 0:02:43.5]} 9. Na4 {[%clk 0:02:03]} 9... Ba7
{[%clk 0:02:42.6]} 10. c4 {[%clk 0:02:02.5]} 10... Bd4 {[%clk 0:02:24.6]} 11. c5
{[%clk 0:01:40.2]} 11... dxc5 {[%clk 0:02:20]} 12. Bf4 {[%clk 0:01:22.2]} 12...
O-O {[%clk 0:02:16.5]} 13. Rc1 {[%clk 0:00:52.2]} 13... Ng6 {[%clk 0:02:13.1]}
14. Bg3 {[%clk 0:00:50.6]} 14... f5 {[%clk 0:02:00.2]} 15. exf5 {[%clk
0:00:45.7]} 15... Bxf5 {[%clk 0:01:59.5]} 16. Nxc5 {[%clk 0:00:45]} 16... Bxc5
{[%clk 0:01:47.6]} 17. Bxf5 {[%clk 0:00:12.6]} 17... Rxf5 {[%clk 0:01:36.2]} 18.
Qxd8+ {[%clk 0:00:10.3]} 18... Rxd8 {[%clk 0:01:35.7]} 19. Bxc7 {[%clk
0:00:11.2]} 19... Rd2 {[%clk 0:01:27.9]} 0-1

[Event "*** Titled Tuesday Blitz"]
[Site "Chess.com"]
[Date "2021.03.02"]
[Round "2"]
[White "davidkalashian"]
[Black "rasmussvane"]
[Result "0-1"]
[WhiteElo "2577"]
[BlackElo "2959"]
[TimeControl "180+1"]
[EndTime "10:16:05 PST"]
[Termination "rasmussvane won by resignation"]

1. d4 {[%clk 0:03:00.9]} 1... d5 {[%clk 0:02:59.4]} 2. Nf3 {[%clk 0:02:58.5]}
2... e6 {[%clk 0:02:59]} 3. c4 {[%clk 0:02:57.4]} 3... a6 {[%clk 0:02:59]} 4. e3
{[%clk 0:02:50.2]} 4... Nf6 {[%clk 0:02:59.2]} 5. Nc3 {[%clk 0:02:49.8]} 5...
dxc4 {[%clk 0:02:59.4]} 6. Bxc4 {[%clk 0:02:49.2]} 6... b5 {[%clk 0:02:59.7]} 7.
Bd3 {[%clk 0:02:41.2]} 7... Bb7 {[%clk 0:03:00.3]} 8. O-O {[%clk 0:02:41.7]}
8... Nbd7 {[%clk 0:02:56.6]} 9. b3 {[%clk 0:02:32.3]} 9... c5 {[%clk 0:02:56]}
10. Bb2 {[%clk 0:02:28.9]} 10... Bd6 {[%clk 0:02:56.3]} 11. Qe2 {[%clk
0:02:25.6]} 11... O-O {[%clk 0:02:46.5]} 12. Rfd1 {[%clk 0:02:23.8]} 12... Qc7
{[%clk 0:02:37.7]} 13. h3 {[%clk 0:02:20.1]} 13... Rac8 {[%clk 0:02:35.6]} 14.
Rac1 {[%clk 0:02:14.1]} 14... Qb8 {[%clk 0:02:35.5]} 15. Bb1 {[%clk 0:02:11]}
15... Rfd8 {[%clk 0:02:33.6]} 16. Ng5 {[%clk 0:01:56.5]} 16... cxd4 {[%clk
0:02:23]} 17. exd4 {[%clk 0:01:55.5]} 17... Bf4 {[%clk 0:02:14.9]} 18. Nxe6
{[%clk 0:01:12.2]} 18... fxe6 {[%clk 0:02:15.8]} 19. Qxe6+ {[%clk 0:01:11.6]}
19... Kh8 {[%clk 0:02:15.8]} 20. Rc2 {[%clk 0:01:12.5]} 20... Re8 {[%clk
0:01:47.1]} 21. Qf5 {[%clk 0:01:07.6]} 21... Bh2+ {[%clk 0:01:27.7]} 22. Kh1
{[%clk 0:01:05.1]} 22... Qf4 {[%clk 0:01:28.2]} 23. Qd3 {[%clk 0:00:49.1]} 23...
Qg5 {[%clk 0:01:20.9]} 24. Qf1 {[%clk 0:00:44.2]} 24... Bd6 {[%clk 0:01:14.5]}
25. Re2 {[%clk 0:00:42.3]} 25... Qf4 {[%clk 0:01:02.3]} 26. Rxe8+ {[%clk
0:00:40.7]} 26... Rxe8 {[%clk 0:01:03.2]} 0-1

[Event "*** Titled Tuesday Blitz"]
[Site "Chess.com"]
[Date "2021.03.02"]
[Round "2"]
[White "malakismayil"]
[Black "Sanyura"]
[Result "0-1"]
[WhiteElo "2320"]
[BlackElo "2610"]
[TimeControl "180+1"]
[EndTime "10:16:10 PST"]
[Termination "Sanyura won by checkmate"]

1. e4 {[%clk 0:03:00.9]} 1... c6 {[%clk 0:02:59.9]} 2. d4 {[%clk 0:02:58.6]}
2... d5 {[%clk 0:03:00.8]} 3. exd5 {[%clk 0:02:58.9]} 3... cxd5 {[%clk
0:03:01.7]} 4. Bd3 {[%clk 0:02:58.5]} 4... Nc6 {[%clk 0:03:02.6]} 5. c3 {[%clk
0:02:58.1]} 5... Qc7 {[%clk 0:03:03]} 6. h3 {[%clk 0:02:58.1]} 6... Nf6 {[%clk
0:03:03]} 7. Nf3 {[%clk 0:02:58]} 7... e6 {[%clk 0:03:03.4]} 8. O-O {[%clk
0:02:55.5]} 8... Bd6 {[%clk 0:03:04.3]} 9. Nbd2 {[%clk 0:02:43.7]} 9... h6
{[%clk 0:03:03.9]} 10. Bb5 {[%clk 0:02:41.3]} 10... O-O {[%clk 0:03:04]} 11. Re1
{[%clk 0:02:40.2]} 11... Bd7 {[%clk 0:03:02.1]} 12. Nf1 {[%clk 0:02:26.8]} 12...
Ne4 {[%clk 0:03:01.3]} 13. Ne3 {[%clk 0:02:10.1]} 13... f5 {[%clk 0:03:00.5]}
14. Bd3 {[%clk 0:02:03.4]} 14... Rf6 {[%clk 0:02:58.4]} 15. Qe2 {[%clk
0:02:01.7]} 15... Raf8 {[%clk 0:02:56.9]} 16. Bd2 {[%clk 0:01:58.3]} 16... Rg6
{[%clk 0:02:52.9]} 17. Rf1 {[%clk 0:01:38.7]} 17... Qd8 {[%clk 0:02:40.5]} 18.
c4 {[%clk 0:01:27.2]} 18... f4 {[%clk 0:02:40.1]} 19. Ng4 {[%clk 0:01:24.1]}
19... h5 {[%clk 0:02:37.5]} 20. Bxe4 {[%clk 0:01:17.2]} 20... dxe4 {[%clk
0:02:04.9]} 21. Qxe4 {[%clk 0:01:18.1]} 21... hxg4 {[%clk 0:02:01.8]} 22. Qxg6
{[%clk 0:01:10.4]} 22... gxf3 {[%clk 0:02:01.9]} 23. d5 {[%clk 0:00:48.8]} 23...
Ne5 {[%clk 0:02:00.6]} 24. Qe4 {[%clk 0:00:41.9]} 24... fxg2 {[%clk 0:02:00.5]}
25. Rfe1 {[%clk 0:00:27.2]} 25... exd5 {[%clk 0:01:47.6]} 26. Qxd5+ {[%clk
0:00:26]} 26... Kh8 {[%clk 0:01:45.7]} 27. Rxe5 {[%clk 0:00:18.7]} 27... Bxe5
{[%clk 0:01:43.5]} 28. Qxe5 {[%clk 0:00:19.6]} 28... Qh4 {[%clk 0:01:42.6]} 29.
Bc3 {[%clk 0:00:18]} 29... Rf6 {[%clk 0:01:40.5]} 30. Qb8+ {[%clk 0:00:16.8]}
30... Kh7 {[%clk 0:01:38]} 31. Kxg2 {[%clk 0:00:14.4]} 31... Qxh3+ {[%clk
0:01:36.9]} 32. Kg1 {[%clk 0:00:11.3]} 32... Rg6# {[%clk 0:01:37.8]} 0-1

[Event "*** Titled Tuesday Blitz"]
[Site "Chess.com"]
[Date "2021.03.02"]
[Round "2"]
[White "Chesspirate_Channel"]
[Black "m_ezat"]
[Result "1-0"]
[WhiteElo "2331"]
[BlackElo "2531"]
[TimeControl "180+1"]
[EndTime "10:16:11 PST"]
[Termination "Chesspirate_Channel won on time"]

1. d4 {[%clk 0:02:53.7]} 1... Nf6 {[%clk 0:02:58.7]} 2. Nc3 {[%clk 0:02:53.6]}
2... d5 {[%clk 0:02:56.8]} 3. Bg5 {[%clk 0:02:52.7]} 3... Nbd7 {[%clk
0:02:52.8]} 4. f3 {[%clk 0:02:49.7]} 4... c5 {[%clk 0:02:49]} 5. e4 {[%clk
0:02:48]} 5... cxd4 {[%clk 0:02:46.8]} 6. Qxd4 {[%clk 0:02:48.9]} 6... e5 {[%clk
0:02:39.2]} 7. Qa4 {[%clk 0:02:48.4]} 7... d4 {[%clk 0:02:37.5]} 8. Nd5 {[%clk
0:02:48.7]} 8... Be7 {[%clk 0:02:36.2]} 9. Nxe7 {[%clk 0:02:48.6]} 9... Qxe7
{[%clk 0:02:32.4]} 10. Bd3 {[%clk 0:02:40]} 10... O-O {[%clk 0:02:31.4]} 11. b4
{[%clk 0:02:40.3]} 11... h6 {[%clk 0:02:29.7]} 12. Bh4 {[%clk 0:02:39.6]} 12...
a5 {[%clk 0:02:28.5]} 13. a3 {[%clk 0:02:39]} 13... Qd6 {[%clk 0:02:01.4]} 14.
Ne2 {[%clk 0:02:33.6]} 14... Nb6 {[%clk 0:01:57.1]} 15. Qb5 {[%clk 0:02:23]}
15... axb4 {[%clk 0:01:48.6]} 16. O-O {[%clk 0:02:22.8]} 16... bxa3 {[%clk
0:01:44.3]} 17. f4 {[%clk 0:02:14.8]} 17... Ng4 {[%clk 0:01:33.8]} 18. h3 {[%clk
0:01:59.3]} 18... Ne3 {[%clk 0:01:24.7]} 19. fxe5 {[%clk 0:01:58.9]} 19... Qg6
{[%clk 0:01:15.1]} 20. Rf2 {[%clk 0:01:50.3]} 20... Ra4 {[%clk 0:00:18.5]} 21.
Be7 {[%clk 0:01:46.4]} 21... Re8 {[%clk 0:00:17.6]} 22. Qxe8+ {[%clk 0:01:45.1]}
22... Kh7 {[%clk 0:00:11.2]} 23. Bc5 {[%clk 0:01:42.3]} 23... Bd7 {[%clk
0:00:09.5]} 24. Qxf7 {[%clk 0:01:38.5]} 24... Qxf7 {[%clk 0:00:04.4]} 25. Rxf7
{[%clk 0:01:39.4]} 25... Be6 {[%clk 0:00:01.8]} 26. Rxb7 {[%clk 0:01:36.5]} 1-0

[Event "*** Titled Tuesday Blitz"]
[Site "Chess.com"]
[Date "2021.03.02"]
[Round "2"]
[White "Angel_Hranitel_37"]
[Black "German_Bazeev"]
[Result "0-1"]
[WhiteElo "2503"]
[BlackElo "2732"]
[TimeControl "180+1"]
[EndTime "10:16:18 PST"]
[Termination "German_Bazeev won by resignation"]

1. d4 {[%clk 0:03:00.9]} 1... Nf6 {[%clk 0:02:58.8]} 2. c4 {[%clk 0:03:00.7]}
2... e6 {[%clk 0:02:58]} 3. Nf3 {[%clk 0:03:01.4]} 3... d5 {[%clk 0:02:56.2]} 4.
e3 {[%clk 0:02:59.6]} 4... c6 {[%clk 0:02:55.6]} 5. Nc3 {[%clk 0:02:59.5]} 5...
Nbd7 {[%clk 0:02:56.2]} 6. b3 {[%clk 0:02:59.8]} 6... Bd6 {[%clk 0:02:55.4]} 7.
Qc2 {[%clk 0:02:59.4]} 7... O-O {[%clk 0:02:55.5]} 8. Bb2 {[%clk 0:02:59.7]}
8... Qe7 {[%clk 0:02:55.8]} 9. Be2 {[%clk 0:02:59.2]} 9... b6 {[%clk 0:02:54.7]}
10. O-O {[%clk 0:02:58.9]} 10... Bb7 {[%clk 0:02:55.4]} 11. Rfd1 {[%clk
0:02:56.2]} 11... Rad8 {[%clk 0:02:45.2]} 12. e4 {[%clk 0:02:56.3]} 12... Nxe4
{[%clk 0:02:44]} 13. Nxe4 {[%clk 0:02:57.2]} 13... dxe4 {[%clk 0:02:44.9]} 14.
Qxe4 {[%clk 0:02:56.5]} 14... Nf6 {[%clk 0:02:45.4]} 15. Qh4 {[%clk 0:02:43.7]}
15... c5 {[%clk 0:02:44.9]} 16. Re1 {[%clk 0:02:26.7]} 16... Ne4 {[%clk
0:02:39.5]} 17. Bd3 {[%clk 0:02:14.7]} 17... Qxh4 {[%clk 0:02:36]} 18. Nxh4
{[%clk 0:02:15.6]} 18... Nf6 {[%clk 0:02:28]} 19. Rad1 {[%clk 0:02:11.4]} 19...
cxd4 {[%clk 0:02:07.5]} 20. Bxd4 {[%clk 0:02:12.3]} 20... Bb4 {[%clk 0:02:07.8]}
21. Bxf6 {[%clk 0:02:10.8]} 21... gxf6 {[%clk 0:02:00.8]} 22. Re3 {[%clk
0:02:08.3]} 22... f5 {[%clk 0:01:59.5]} 23. Nf3 {[%clk 0:01:47.4]} 23... Rd6
{[%clk 0:01:56.2]} 24. Kf1 {[%clk 0:01:05.8]} 24... Rfd8 {[%clk 0:01:54.2]} 25.
Ke2 {[%clk 0:01:06.3]} 25... Bc5 {[%clk 0:01:52]} 26. Re5 {[%clk 0:01:03]} 26...
f6 {[%clk 0:01:50.7]} 27. Rxc5 {[%clk 0:00:56.1]} 27... Bxf3+ {[%clk 0:01:50.8]}
28. Kxf3 {[%clk 0:00:50.8]} 28... bxc5 {[%clk 0:01:51.7]} 29. Ke2 {[%clk
0:00:51.1]} 29... Kf8 {[%clk 0:01:48.9]} 30. f3 {[%clk 0:00:51.2]} 30... e5
{[%clk 0:01:48.9]} 31. Ke3 {[%clk 0:00:51]} 31... h5 {[%clk 0:01:43.9]} 32. h3
{[%clk 0:00:45.1]} 32... h4 {[%clk 0:01:43.7]} 33. Rd2 {[%clk 0:00:43.3]} 33...
f4+ {[%clk 0:01:43.7]} 34. Ke2 {[%clk 0:00:41.6]} 34... f5 {[%clk 0:01:44.6]}
35. Rd1 {[%clk 0:00:41.8]} 35... Ke7 {[%clk 0:01:41.5]} 36. Bc2 {[%clk
0:00:42.7]} 36... Rxd1 {[%clk 0:01:40.1]} 37. Bxd1 {[%clk 0:00:43.6]} 37... e4
{[%clk 0:01:40.7]} 38. Bc2 {[%clk 0:00:41.8]} 38... Rd4 {[%clk 0:01:40.2]} 39.
Bb1 {[%clk 0:00:37.1]} 39... Kf6 {[%clk 0:01:40.1]} 40. Bc2 {[%clk 0:00:36.5]}
40... Ke5 {[%clk 0:01:40.5]} 41. Bb1 {[%clk 0:00:36.9]} 41... e3 {[%clk
0:01:41.1]} 42. Bd3 {[%clk 0:00:37]} 42... a5 {[%clk 0:01:39.8]} 43. a3 {[%clk
0:00:37.1]} 43... Rd8 {[%clk 0:01:40.1]} 44. a4 {[%clk 0:00:37.3]} 44... Rd7
{[%clk 0:01:40.2]} 45. Bb1 {[%clk 0:00:37]} 45... Rd2+ {[%clk 0:01:40.5]} 46.
Kf1 {[%clk 0:00:37.5]} 46... Rd1+ {[%clk 0:01:40.5]} 0-1

[Event "*** Titled Tuesday Blitz"]
[Site "Chess.com"]
[Date "2021.03.02"]
[Round "2"]
[White "Kobalia"]
[Black "anon481216"]
[Result "1-0"]
[WhiteElo "2687"]
[BlackElo "2478"]
[TimeControl "180+1"]
[EndTime "10:16:21 PST"]
[Termination "Kobalia won by resignation"]

1. e4 {[%clk 0:02:37]} 1... c5 {[%clk 0:03:00.5]} 2. Nf3 {[%clk 0:02:35.8]} 2...
d6 {[%clk 0:03:01.1]} 3. Bb5+ {[%clk 0:02:33.6]} 3... Nd7 {[%clk 0:03:00]} 4.
O-O {[%clk 0:02:32.9]} 4... a6 {[%clk 0:02:58.9]} 5. Bd3 {[%clk 0:02:32.8]} 5...
Ngf6 {[%clk 0:02:57.3]} 6. c3 {[%clk 0:02:33]} 6... b5 {[%clk 0:02:52.2]} 7. Bc2
{[%clk 0:02:33.4]} 7... Bb7 {[%clk 0:02:44.6]} 8. Qe2 {[%clk 0:02:33.6]} 8... c4
{[%clk 0:02:41.4]} 9. b3 {[%clk 0:02:33.5]} 9... cxb3 {[%clk 0:02:40.7]} 10.
axb3 {[%clk 0:02:33.1]} 10... e6 {[%clk 0:02:38.1]} 11. d4 {[%clk 0:02:32.9]}
11... Be7 {[%clk 0:02:37.9]} 12. c4 {[%clk 0:02:33.1]} 12... bxc4 {[%clk
0:02:25.6]} 13. bxc4 {[%clk 0:02:32.3]} 13... O-O {[%clk 0:02:26.2]} 14. h3
{[%clk 0:02:28.3]} 14... d5 {[%clk 0:02:22.6]} 15. cxd5 {[%clk 0:02:26]} 15...
exd5 {[%clk 0:02:22.6]} 16. e5 {[%clk 0:02:26.1]} 16... Ne4 {[%clk 0:02:22]} 17.
Nbd2 {[%clk 0:02:25.4]} 17... f5 {[%clk 0:02:11.2]} 18. Nb3 {[%clk 0:02:09]}
18... a5 {[%clk 0:02:03.7]} 19. Bd3 {[%clk 0:02:05]} 19... a4 {[%clk 0:01:53.1]}
20. Nbd2 {[%clk 0:02:02.6]} 20... a3 {[%clk 0:01:36.5]} 21. e6 {[%clk
0:01:59.7]} 21... Ndf6 {[%clk 0:01:33.2]} 22. Ne5 {[%clk 0:01:50.3]} 22... g6
{[%clk 0:01:15.8]} 23. Nb3 {[%clk 0:01:42]} 23... Qb6 {[%clk 0:01:12.2]} 24. Nc5
{[%clk 0:01:38.3]} 24... Bxc5 {[%clk 0:01:09.5]} 25. dxc5 {[%clk 0:01:38]} 25...
Qxc5 {[%clk 0:01:09.6]} 26. Nd7 {[%clk 0:01:27]} 26... Nxd7 {[%clk 0:01:09]} 27.
exd7 {[%clk 0:01:27.2]} 27... Qd6 {[%clk 0:01:05.5]} 28. Bxe4 {[%clk 0:01:26.5]}
28... fxe4 {[%clk 0:00:59.3]} 29. Rd1 {[%clk 0:01:25.1]} 29... Qxd7 {[%clk
0:00:56.3]} 30. Bxa3 {[%clk 0:01:24]} 30... Rf5 {[%clk 0:00:52.9]} 31. Bb2
{[%clk 0:01:22.2]} 31... Raf8 {[%clk 0:00:49.7]} 32. Bd4 {[%clk 0:01:21.7]}
32... Bc6 {[%clk 0:00:45]} 33. Ra7 {[%clk 0:01:19.6]} 1-0

[Event "*** Titled Tuesday Blitz"]
[Site "Chess.com"]
[Date "2021.03.02"]
[Round "2"]
[White "Problematique_99"]
[Black "ChristopherYoo"]
[Result "0-1"]
[WhiteElo "2431"]
[BlackElo "2900"]
[TimeControl "180+1"]
[EndTime "10:16:22 PST"]
[Termination "ChristopherYoo won by resignation"]

1. e4 {[%clk 0:03:00.9]} 1... c5 {[%clk 0:02:13.4]} 2. Nc3 {[%clk 0:02:57.1]}
2... Nc6 {[%clk 0:02:13]} 3. Bb5 {[%clk 0:02:56.5]} 3... Nd4 {[%clk 0:02:09.4]}
4. Nf3 {[%clk 0:02:56.6]} 4... e6 {[%clk 0:02:09.6]} 5. O-O {[%clk 0:02:49.9]}
5... a6 {[%clk 0:02:08.6]} 6. Bd3 {[%clk 0:02:49]} 6... Nc6 {[%clk 0:02:08.8]}
7. e5 {[%clk 0:02:46.3]} 7... f5 {[%clk 0:02:07.9]} 8. a4 {[%clk 0:02:31.6]}
8... g5 {[%clk 0:01:55.2]} 9. h3 {[%clk 0:02:04.4]} 9... h5 {[%clk 0:01:52.5]}
10. Re1 {[%clk 0:01:42.3]} 10... Bg7 {[%clk 0:01:47.6]} 11. Bxf5 {[%clk
0:01:19.3]} 11... exf5 {[%clk 0:01:46.1]} 12. d4 {[%clk 0:01:19.5]} 12... Nxd4
{[%clk 0:01:28]} 13. Nxg5 {[%clk 0:01:14]} 13... Ne7 {[%clk 0:01:23.9]} 14. f4
{[%clk 0:01:04.2]} 14... Ne6 {[%clk 0:01:06.1]} 15. Nf3 {[%clk 0:00:55.8]} 15...
b6 {[%clk 0:01:03.2]} 16. Nh4 {[%clk 0:00:42]} 16... Bb7 {[%clk 0:01:00]} 17.
Qd3 {[%clk 0:00:41.8]} 17... O-O {[%clk 0:00:57.6]} 18. Qd1 {[%clk 0:00:40.6]}
18... Qe8 {[%clk 0:00:57.3]} 19. Ne2 {[%clk 0:00:37.7]} 19... Ng6 {[%clk
0:00:54.4]} 0-1